Cogmind - Beta 15 @@@ ROGUE MODE // 2025.06.07 @ 16:16:47 Player: shockman27 Result: Destroyed by exploding Neutrino Reactor Performance ------------- Evolutions (3) 1500 Regions Visited (12) 2400 Robots Destroyed (277) 1385 Value Destroyed (9300) 9300 Prototype IDs (9) 180 Alien Tech Used (0) 0 Bonus (4158) 4158 TOTAL SCORE: 18923 Bonus ------- High Alert Combat Kills 1250 Follower Combat Kills 1008 Entered Garrisons 400 Used RIF Installer 1500 Cogmind --------- Core Integrity 0/700 Matter 242/300 Energy 292/300 System Corruption 3% Temperature Cool (3) Movement Treading (240) Ox1 Location -7/Factory Parts ------- > --- POWER (1) -------- Enhanced Nuclear Core > --- PROPULSION (3) --- Light Treads Medium Treads Medium Treads > --- UTILITY (7) ------ Huge Storage Unit Improved Sensor Array Improved Signal Interpreter Improved Medium Armor Plating System Shield Relay Coupler [NC] (32) Relay Coupler [Grunt] (2) > --- WEAPON (2) ------- Chainsword > --- INVENTORY (25) --- Enhanced Nuclear Core Light Treads Light Treads Light Treads Improved Light Armor Plating Graphene Brace Hacking Suite Authchip [R/Combat] Authchip [R/Combat] Relay Coupler [Sentry] (20) Relay Coupler [Hunter] (22) Relay Coupler [Hunter] (20) Relay Coupler [Behemoth] (15) Heavy Phase Cannon Improved Assault Rifle Improved Assault Rifle Gauss Rifle Gauss Rifle Precision Assault Rifle Advanced Assault Cannon Heavy Linear Accelerator Heavy Rocket Launcher Heavy Missile Launcher Remote Datajack Peak State ------------ > --- POWER ------------ Enhanced Nuclear Core > --- PROPULSION ------- Armored Medium Treads Armored Heavy Treads > --- UTILITY ---------- Huge Storage Unit Improved Signal Interpreter Advanced Targeting Computer Matter Filter Improved Kinecellerator Improved Heavy Armor Plating > --- WEAPON ----------- Heavy Phase Cannon Chainsword > --- INVENTORY -------- Micro Nuclear Core Medium Treads Medium Treads Medium Treads High-capacity Matter Pod Hardened Medium Armor Plating Reactive Plating Graphene Brace Hacking Suite Hacking Suite Authchip [R/Combat] Authchip [R/Combat] Relay Coupler [NC] Relay Coupler [Grunt] Relay Coupler [Sentry] Relay Coupler [Hunter] Relay Coupler [Behemoth] Improved Assault Rifle Improved Assault Rifle Gauss Rifle Gauss Rifle Heavy Linear Accelerator Heavy Missile Launcher Remote Datajack [Rating: 74] Favorites ----------- Power Nuclear Core Engine Ion Engine Power Core Nuclear Core Propulsion Light Treads Treads Light Treads Wheel Wheel Utility Huge Storage Unit Device Improved Sensor Array Storage Huge Storage Unit Processor Improved Signal Interpreter Hackware Hacking Suite Protection Hardened Medium Armor Plating Weapon Improved Assault Rifle Energy Gun Medium Laser Energy Cannon Heavy Phase Cannon Ballistic Gun Improved Assault Rifle Ballistic Cannon Improved Light Cannon Launcher Heavy Missile Launcher Special Weapon Remote Datajack Impact Weapon Hammer Slashing Weapon Chainsword Special Melee Weapon Datajack Build | -11 -10 -10 -9 -9 -9 -8 -8 -8 -8 -7 -7 -7 ------- Run | Yrd Mat Min Mat Min Exi Min Mat Gar Mat Fac Gar Fac Slots Evolved 6 | . . . 2 . . . 2 . . 2 . . Power . | . . . . . . . . . . . . . Propulsion 1 | . . . 1 . . . . . . . . . Utility 5 | . . . 1 . . . 2 . . 2 . . Weapon . | . . . . . . . . . . . . . Parts Attached 174 | 8 13 7 28 . 4 7 3 17 31 21 19 16 Power 17 | 2 1 . 4 . . 1 . 1 5 2 . 1 Engine 6 | 2 1 . 3 . . . . . . . . . Core 11 | . . . 1 . . 1 . 1 5 2 . 1 Reactor . | . . . . . . . . . . . . . Propulsion 48 | 2 4 2 13 . . 3 . 6 11 4 2 1 Treads 37 | . 2 . 12 . . 3 . 6 11 . 2 1 Leg . | . . . . . . . . . . . . . Wheel 11 | 2 2 2 1 . . . . . . 4 . . Hover . | . . . . . . . . . . . . . Flight . | . . . . . . . . . . . . . Utility 59 | 2 2 1 4 . 1 2 3 6 8 8 14 8 Device 20 | 1 1 . 1 . 1 . 1 2 1 5 4 3 Storage 4 | 1 1 . 1 . . . . . 1 . . . Processor 4 | . . . . . . 1 1 . . 1 1 . Hackware 15 | . . . . . . . . 2 4 1 5 3 Protection 16 | . . 1 2 . . 1 1 2 2 1 4 2 Artifact . | . . . . . . . . . . . . . Weapon 50 | 2 6 4 7 . 3 1 . 4 7 7 3 6 Energy Gun 6 | 1 2 1 1 . . . . . . . . 1 Energy Cannon 2 | . . . 1 . . . . . . . 1 . Ballistic Gun 21 | 1 . 2 5 . 2 1 . 2 3 3 1 1 Ballistic Cannon 8 | . 3 . . . . . . . 1 1 1 2 Launcher 4 | . . 1 . . . . . 1 . 1 . 1 Special Weapon 1 | . . . . . . . . . . 1 . . Impact Weapon 2 | . 1 . . . . . . . 1 . . . Slashing Weapon 2 | . . . . . . . . 1 . 1 . . Piercing Weapon . | . . . . . . . . . . . . . Special Melee Weapon 4 | . . . . . 1 . . . 2 . . 1 Unidentified Prototypes 5 | . . . 2 . . . . . . 1 . 2 Parts Lost 40 | . 5 . 6 . . 5 . 5 8 . 4 7 Power 6 | . 1 . 1 . . 1 . 1 2 . . . Propulsion 11 | . 2 . 2 . . 2 . 2 1 . . 2 Utility 16 | . 1 . 3 . . 1 . 1 2 . 4 4 Weapon 7 | . 1 . . . . 1 . 1 3 . . 1 Highest Loss Streak 6 | . 3 . 1 . . 4 . 2 6 . 2 2 To Critical Strikes 2 | . 2 . . . . . . . . . . . Average Backups 23 | 4 14 24 24 25 24 23 24 24 24 24 23 23 Power 1 | . 1 2 1 1 1 . 1 . . 1 1 1 Propulsion 4 | 2 4 5 5 5 5 4 5 3 3 4 3 3 Utility 9 | . 3 7 7 8 8 8 8 11 11 11 12 10 Weapon 7 | . 4 9 9 10 9 8 9 8 7 7 6 7 Tool/Special . | . . . . . . . . . . . . . Unused Backups 65 | . 5 1 14 . 1 1 3 6 7 3 9 15 Power 7 | . . . 2 . . 1 . 1 1 . . 2 Propulsion 11 | . . . 2 . . . . . 3 2 1 3 Utility 35 | . 2 . 6 . . . 3 5 1 1 8 9 Weapon 12 | . 3 1 4 . 1 . . . 2 . . 1 Tool/Special . | . . . . . . . . . . . . . Average Slot Usage (%) 96 | . 95 100 98 100 99 99 95 99 99 95 82 94 Engine 2 | . 13 14 5 . . . . . . . . . Core 7 | . . . 5 11 11 10 9 8 9 7 7 7 Treads 22 | . 3 . 31 33 33 32 27 27 27 17 12 19 Wheel 3 | . 24 28 1 . . . . . . 4 2 . Device 7 | . 9 5 9 11 11 . 6 5 5 13 7 3 Storage 9 | . 14 14 11 11 11 11 9 9 9 7 7 7 Processor 6 | . . . . . . 10 15 9 9 8 11 7 Hackware 7 | . . . . . . . . 12 15 12 5 22 Protection 8 | . . 8 10 11 11 11 9 9 5 7 10 9 Ballistic Gun 9 | . 7 12 16 11 9 16 11 12 7 5 6 3 Ballistic Cannon 2 | . 3 9 3 . . . . . 5 2 . 5 Impact Weapon 2 | . 4 . 1 11 6 5 6 1 1 4 . . Slashing Weapon 1 | . . . . . . . . 3 2 . 5 3 Peak Build Rating 74 | 7 12 13 21 20 27 23 31 36 42 49 74 64 Average Rating 34 | 5 7 11 18 20 19 20 27 33 33 45 64 54 On Entrance 25 | . 7 12 11 20 20 21 20 28 36 42 48 68 Naked Turns . | . . . . . . . . . . . . . Heaviest Build 136 | 14 94 97 103 100 101 101 103 106 103 120 136 123 Greatest Support 87 | 20 40 32 63 63 63 63 60 60 84 84 87 87 Greatest Overweight (x) 7 | . 4 4 2 1 1 1 1 1 1 7 2 1 Average Overweight (x) 1 | . 3 3 1 1 1 1 1 1 1 1 1 1 Largest Inventory Capacity 25 | 8 25 25 25 25 25 25 25 25 25 25 25 25 Average Capacity 24 | 7 23 25 25 25 25 25 25 25 25 25 25 25 Most Carried 25 | 8 25 25 25 25 25 25 25 25 25 25 25 25 Average Carried 23 | 4 14 24 24 25 24 23 24 24 24 24 24 23 Final Capacity 25 | 8 25 25 25 25 25 25 25 25 25 25 25 25 Final Carried 25 | 8 24 25 25 25 25 24 25 25 25 25 22 25 Class Distribution -------------------- 48% | Bothacker-Mutant 46% | Mutant 3% | Scavenger-Mutant Dominant Class ---------------- Mutant | -10/Materials Mutant | -10/Mines Mutant | -9/Materials Mutant | -9/Mines Mutant | -9/Exiles Mutant | -8/Mines Mutant | -8/Materials Mutant | -8/Garrison Bothacker-Mutant | -8/Materials Bothacker-Mutant | -7/Factory Bothacker-Mutant | -7/Garrison Bothacker-Mutant | -7/Factory Resources | -11 -10 -10 -9 -9 -9 -8 -8 -8 -8 -7 -7 -7 ----------- Run | Yrd Mat Min Mat Min Exi Min Mat Gar Mat Fac Gar Fac Matter Collected 8332 | 253 384 141 1732 5 83 367 85 879 1138 794 978 1493 Remotely . | . . . . . . . . . . . . . Salvage Created 9871 | 50 634 241 2209 . 73 614 85 1558 1321 1133 776 1177 Parts 537 | 10 38 16 162 . 4 24 5 64 73 48 35 58 Haulers Intercepted 14 | . 1 . 5 . . . . . 5 1 . 2 Recyclers Shooed 7 | . 2 . . . . . 1 . . 1 . 3 Parts Field Recycled . | . . . . . . . . . . . . . Retrieved Matter . | . . . . . . . . . . . . . Parts Self-Destructed . | . . . . . . . . . . . . . Prevented . | . . . . . . . . . . . . . Kills | -11 -10 -10 -9 -9 -9 -8 -8 -8 -8 -7 -7 -7 ------- Run | Yrd Mat Min Mat Min Exi Min Mat Gar Mat Fac Gar Fac Combat Hostiles Destroyed 188 | . 11 5 50 . . 9 1 33 20 12 23 24 Melee 8 | . 2 . . . . . . . 1 . 3 2 Guns 109 | . 9 2 35 . . 9 1 21 13 4 12 3 Cannons 36 | . . . 7 . . . . 1 6 5 1 16 AOE 35 | . . 3 8 . . . . 11 . 3 7 3 Classes Destroyed 16 | 1 9 . 2 . . 2 . . . 1 1 . Worker 19 | . 2 . 3 . . 1 . . 4 4 . 5 Builder 5 | . 1 . 2 . . . . . 1 . . 1 Tunneler 12 | 3 . . . . . 5 . . . 1 . 3 Hauler 14 | . 1 . 5 . . . . . 5 1 . 2 Recycler 20 | . 2 2 2 . . 1 . . 2 9 . 2 Mechanic 2 | . 1 . 1 . . . . . . . . . Operator 7 | . 1 . 5 . . . . . 1 . . . Watcher 10 | . 2 . 5 . . . 1 . 1 . . 1 Swarmer 61 | . 6 3 18 . . 2 . 17 2 4 9 . Grunt 80 | . 5 2 21 . . 5 . 12 10 1 8 16 Brawler 2 | . . . 1 . . . . . . . . 1 Duelist 5 | . . . . . . 1 . 2 2 . . . Sentry 20 | . . . 10 . . . 1 2 4 . . 3 Hunter 5 | . . . . . . 1 . . 2 . 1 1 Programmer 14 | . . . . . . . . . . 7 4 3 Heavy 1 | . . . . . . . . . . . 1 . Best Kill Streak 9 | 2 8 3 5 . . 4 2 9 7 7 4 8 Combat Bots Only 9 | . 4 3 5 . . 3 1 9 6 4 4 3 Max Kills in Single Turn 3 | 1 2 2 3 . . 1 1 3 1 3 3 3 Gunslinging 1 | . 1 . 1 . . . . 1 . . . . Exploded 3 | . . 2 3 . . . . 3 . 3 3 1 Melee 1 | . 1 . . . . . . . 1 . 1 1 Uniques/NPCs Destroyed . | . . . . . . . . . . . . . Combat | -11 -10 -10 -9 -9 -9 -8 -8 -8 -8 -7 -7 -7 -------- Run | Yrd Mat Min Mat Min Exi Min Mat Gar Mat Fac Gar Fac Hostile Shots Fired 1263 | . 54 20 246 . . 80 . 156 184 58 224 241 Missed 357 | . 13 4 74 . . 17 . 39 51 21 69 69 Hits 906 | . 41 16 172 . . 63 . 117 133 37 155 172 Melee 9 | . . . . . . 7 . . . . . 2 Projectile 897 | . 41 16 172 . . 56 . 117 133 37 155 170 Critical Strikes 31 | . 2 . 4 . . 3 . 5 1 5 7 4 Damage Taken 13028 | . 435 160 1885 . . 1109 . 1485 2313 576 2374 2691 Core 1733 | . 118 33 178 . . 150 . 172 377 50 308 347 Absorbed by Shields . | . . . . . . . . . . . . . Ignored by Resistances 154 | . . . . . . . . . . 10 137 7 Regen/Repaired (Parts) 69 | . . . . . . . . . . . . 69 Core Remaining (%) 39 | 100 . 39 . . . 18 . . . . . . Volleys Fired 706 | 14 52 16 157 . 3 40 8 85 74 57 88 112 Largest 2 | 2 2 2 2 . 2 2 2 2 2 2 2 2 Hottest 100 | 70 100 85 85 . 46 51 51 56 66 65 70 80 Shots Fired 1297 | 28 98 30 311 . 6 79 14 155 145 95 150 186 Gun 1000 | 28 98 28 255 . 6 79 14 139 106 57 127 63 Cannon 234 | . . . 51 . . . . 5 39 26 4 109 Launcher 28 | . . 2 5 . . . . 11 . 1 4 5 Special 35 | . . . . . . . . . . 11 15 9 Kinetic 1150 | 14 45 14 303 . 6 79 14 144 145 83 131 172 Thermal 69 | 14 38 14 3 . . . . . . . . . Explosive 23 | . . 2 5 . . . . 6 . 1 4 5 Electromagnetic 20 | . 15 . . . . . . 5 . . . . Robot Hit Streak 43 | 4 11 7 19 . 7 22 7 23 15 9 43 10 Robot Miss Streak 4 | 4 3 3 3 . . 3 2 3 3 4 4 4 Penetration Max 1 | . . . . . . . . . 1 . 1 1 Secondary Targets 18 | . 2 . 6 . . 1 . 4 3 . 2 . Max Gunslinging Chain 1 | . 1 . 1 . . 1 . 1 1 . 1 . Shots Hit Robots 1005 | 13 66 18 201 . 16 65 11 144 139 76 127 129 Core Hits 429 | 3 32 12 97 . 3 24 4 75 50 30 39 60 Critical Kills 8 | . 1 . 1 . 1 1 . 3 . 1 . . Critical Parts Destroyed 6 | . . . . . . 3 . 1 1 1 . . Critical Strikes 30 | . 2 . 2 . 1 4 . 7 2 5 1 6 Burn 1 | . 1 . . . . . . . . . . . Destroy 10 | . 1 . 1 . . 4 . 3 1 . . . Blast 8 | . . . 1 . . . . . 1 3 . 3 Smash 4 | . . . . . 1 . . 1 . 2 . . Sever 7 | . . . . . . . . 3 . . 1 3 Melee Attacks 307 | . 13 . 8 . 12 6 6 78 57 42 53 32 Impact 104 | . 13 . 8 . 2 6 6 24 10 35 . . Slashing 157 | . . . . . . . . 41 24 7 53 32 Piercing . | . . . . . . . . . . . . . Sneak Attacks 73 | . 4 . . . 3 5 . 14 22 16 1 8 Combat Hostiles 5 | . . . . . . . . . 4 . 1 . Follow-up Attacks . | . . . . . . . . . . . . . Damage Inflicted 23898 | 130 1063 371 3849 . 102 1158 194 3533 2750 2774 3041 4933 Guns 11368 | 130 612 261 2755 . 52 900 194 1440 1388 766 1989 881 Cannons 4100 | . . . 725 . . . . 72 645 406 268 1984 Explosions 3600 | . 102 110 361 . . . . 1262 . 213 471 1081 Melee 4817 | . 349 . . . 50 258 . 759 717 1389 313 982 Ramming 13 | . . . 8 . . . . . . . . 5 Kinetic 14783 | 44 209 98 3447 . 52 900 194 1512 2033 1172 2257 2865 Thermal 946 | 86 382 163 33 . . . . 282 . . . . Explosive 2756 | . . 110 361 . . . . 520 . 213 471 1081 Electromagnetic 583 | . 123 . . . . . . 460 . . . . Impact 2196 | . 349 . . . 50 258 . 283 . 1256 . . Slashing 2621 | . . . . . . . . 476 717 133 313 982 Piercing . | . . . . . . . . . . . . . Highest Corruption 3 | . 1 1 2 2 2 2 . . . 3 3 3 Average Corruption 1 | . 1 1 2 2 2 2 . . . 1 1 2 Corruption Purged 10 | . . . . . . . . . . 7 3 . Corruption Blocked . | . . . . . . . . . . . . . Effects 164 | . 3 10 55 5 13 26 . . . 13 3 36 Message Errors 33 | . . 3 8 2 3 5 . . . 1 . 11 Matter Fused 40 | . 1 1 14 2 4 7 . . . 4 . 7 Heat Flow Errors 23 | . 1 . 9 1 2 7 . . . 1 . 2 Energy Discharges 20 | . . 1 7 . 2 3 . . . . . 7 Parts Rejected 1 | . . . . . . . . . . . 1 . Parts Fused 1 | . . 1 . . . . . . . . . . Data Loss (minor) 19 | . 1 3 6 . 1 2 . . . 2 1 3 Data Loss (major) 11 | . . 1 3 . 1 . . . . 4 . 2 Misfires 10 | . . . 5 . . . . . . . 1 4 Alerts 4 | . . . 3 . . 1 . . . . . . Weapon Failures 2 | . . . . . . 1 . . . 1 . . Overload Shots . | . . . . . . . . . . . . . Overflow Damage 1235 | . 100 . 10 . . 67 . 153 79 588 5 233 Projectiles 39 | . . . . . . . . . 12 15 . 12 Explosions 114 | . . . 10 . . . . 70 . . . 34 Melee 1082 | . 100 . . . . 67 . 83 67 573 5 187 Knockbacks 47 | . 4 . 13 . . . . 3 7 5 . 15 Impact 8 | . 4 . . . . . . 1 . 3 . . Kinetic 33 | . . . 11 . . . . 2 7 2 . 11 Secondary 6 | . . . 2 . . . . . . . . 4 Self-Inflicted Damage 15 | . . . 6 . . . . 4 . . . 5 Shots 3 | . . . 1 . . . . 1 . . . 1 Rammed 3 | . . . 1 . . . . . . . . 2 Targets Rammed 4 | . . . 1 . . . . . . . . 3 Kicked . | . . . . . . . . . . . . . Crushed 1 | . . . . . . . . . . . . 1 Highest Temperature 349 | 60 230 340 216 174 186 268 . 119 146 137 230 349 Average Temperature 57 | 26 39 145 40 90 97 82 . 38 47 13 80 68 Received Heat Transfer 4584 | . 123 63 603 . . 432 . 711 864 9 762 1017 Effects 2 | . . 1 . . . . . . . . . 1 Shutdowns 2 | . . 1 . . . . . . . . . 1 Siege Activations 1 | . . . . . . . . . . . 1 . Total Turns 6 | . . . . . . . . . . . 6 . Longest Duration 6 | . . . . . . . . . . . 6 . Martial Activations . | . . . . . . . . . . . . . Shielding Activations . | . . . . . . . . . . . . . Robots Disrupted . | . . . . . . . . . . . . . Combat Hostiles . | . . . . . . . . . . . . . Robots Corrupted 12 | . 2 . . . . 4 . 1 . 5 . . Combat Hostiles . | . . . . . . . . . . . . . Parts Fried 16 | . 4 . . . . 7 . . . 5 . . Impact Corruptions 25 | . 5 . . . . 4 . 4 . 12 . . Robots Melted . | . . . . . . . . . . . . . Combat Hostiles . | . . . . . . . . . . . . . Parts Melted 2 | 1 1 . . . . . . . . . . . Heat Transferred 2091 | 259 1038 370 74 . . . . 350 . . . . Parts Sabotaged . | . . . . . . . . . . . . . Parts Stolen . | . . . . . . . . . . . . . Parts Stripped . | . . . . . . . . . . . . . Power Chain Reactions 4 | . 2 . . . . . . 2 . . . . Alert | -11 -10 -10 -9 -9 -9 -8 -8 -8 -8 -7 -7 -7 ------- Run | Yrd Mat Min Mat Min Exi Min Mat Gar Mat Fac Gar Fac Maximum Alert Level 5 | . . . 2 1 . . . 5 4 . 5 3 Low Security (%) 39 | 100 100 100 25 70 . 100 100 13 . 100 6 . Level 1 15 | . . . 34 29 . . . 4 38 . 28 . Level 2 19 | . . . 40 . . . . 10 48 . 17 28 Level 3 14 | . . . . . . . . 19 12 . 19 71 Level 4 6 | . . . . . . . . 23 . . 24 . Level 5 4 | . . . . . . . . 28 . . 3 . High Security . | . . . . . . . . . . . . . Max Security . | . . . . . . . . . . . . . Sterilizations 1 | . . . 1 . . . . . . . . . Peak Influence 2310 | 5 108 85 644 245 . 75 30 2310 1125 166 1695 972 Initial 1125 | . . 21 . 245 . . . . 1125 146 114 889 Average 479 | 1 17 15 345 163 . 9 3 1159 515 52 762 781 Influence Increases 9031 | 15 454 153 1669 . 5 296 69 2500 792 386 1701 991 Destroy 0b10 Robot/C 3860 | . 220 100 1000 . . 180 20 780 405 180 435 540 Destroy 0b10 Robot/NC 459 | 15 50 10 115 . 5 35 5 28 76 60 . 60 Destroy Leader 776 | . 56 20 270 . . 30 12 50 130 66 24 118 Allied During Kill 149 | . . . . . . . . 33 29 . 31 56 Successful Hack 172 | . 44 8 44 . . 5 . 18 28 . 14 11 Select Force Hacks 120 | . 60 . 60 . . . . . . . . . Disable Machine 231 | . 15 . 30 . . . 30 . 36 36 24 60 Anti-Garrison Action 2341 | . . . . . . . . 1364 . . 977 . Destroy Structure 491 | . 9 15 45 . . 1 2 137 28 32 160 62 Partial Spotted 12 | . . . . . . . . . 12 . . . Lose Combat Pursuer 420 | . . . 105 . . 45 . 90 48 12 36 84 Influence Decreases 8062 | 15 400 207 1039 555 80 296 69 190 2780 545 169 1717 Entered New Map 2709 | . . 33 . 385 75 . . . 1185 176 49 806 Time Decay 3528 | 15 350 174 679 170 5 286 69 . 710 369 . 701 Lost Part 360 | . 50 . 60 . . 10 . 50 80 . 40 70 Lost Ally 440 | . . . . . . . . 140 80 . 80 140 Purge Threat 1025 | . . . 300 . . . . . 725 . . . Squads Dispatched 36 | . 4 . 7 . . . . . 5 7 . 13 Investigation 5 | . 2 . 2 . . . . . . . . 1 Extermination 11 | . . . . . . . . . . 7 . 4 Reinforcement 14 | . 2 . 5 . . . . . 3 . . 4 Assault 4 | . . . . . . . . . 2 . . 2 Garrison 2 | . . . . . . . . . . . . 2 Intercept . | . . . . . . . . . . . . . Searches Triggered . | . . . . . . . . . . . . . Construction Impeded . | . . . . . . . . . . . . . Haulers Reinforced 2 | . . . . . . . . . . . . 2 Active Scanning Responses . | . . . . . . . . . . . . . Cargo Convoy Interrupts . | . . . . . . . . . . . . . Stealth | -11 -10 -10 -9 -9 -9 -8 -8 -8 -8 -7 -7 -7 --------- Run | Yrd Mat Min Mat Min Exi Min Mat Gar Mat Fac Gar Fac Distress Signals 13 | . 3 . 4 . . . 1 . 2 . . 3 Communications Jammed . | . . . . . . . . . . . . . Distress Signals . | . . . . . . . . . . . . . Times Spotted 311 | . 21 5 66 . . 13 2 46 46 26 33 53 Peak Tracking Total 7 | . 5 3 7 . . 4 2 5 7 4 3 7 Tactical Retreats 23 | . . . 6 . . 2 . 4 4 1 2 4 Traps | -11 -10 -10 -9 -9 -9 -8 -8 -8 -8 -7 -7 -7 ------- Run | Yrd Mat Min Mat Min Exi Min Mat Gar Mat Fac Gar Fac Traps Triggered 22 | . 2 . 1 . . . . 4 2 2 7 4 Indirectly . | . . . . . . . . . . . . . Trap Hack Attempts . | . . . . . . . . . . . . . Triggered . | . . . . . . . . . . . . . Disarmed . | . . . . . . . . . . . . . Reprogrammed . | . . . . . . . . . . . . . Reused . | . . . . . . . . . . . . . Traps Extracted . | . . . . . . . . . . . . . Installed . | . . . . . . . . . . . . . Triggered . | . . . . . . . . . . . . . Machines | -11 -10 -10 -9 -9 -9 -8 -8 -8 -8 -7 -7 -7 ---------- Run | Yrd Mat Min Mat Min Exi Min Mat Gar Mat Fac Gar Fac Machines Disabled 30 | . 1 . 3 . . . 2 6 3 3 7 5 Max in Single Turn 1 | . 1 . 1 . . . 1 1 1 1 1 1 Garrison Access 1 | . . . . . . . . . . . . 1 Garrison Relay 9 | . . . . . . . . 5 . . 4 . Machines Repaired . | . . . . . . . . . . . . . Machines Dismantled . | . . . . . . . . . . . . . Machines Sabotaged . | . . . . . . . . . . . . . Overloaded Fab Kills . | . . . . . . . . . . . . . Hacking | -11 -10 -10 -9 -9 -9 -8 -8 -8 -8 -7 -7 -7 --------- Run | Yrd Mat Min Mat Min Exi Min Mat Gar Mat Fac Gar Fac Machines Accessed 41 | . 9 1 10 . 2 1 1 3 7 3 2 2 Terminals 28 | . 7 1 8 . . 1 . 3 6 . 2 . Fabricators 2 | . . . . . . . . . . 2 . . Repair Stations 1 | . . . . . . . . . . . . 1 Recycling Units 4 | . 2 . 2 . . . . . . . . . Scanalyzers 1 | . . . . . . . . . 1 . . . Garrison Access 3 | . . . . . . . 1 . . 1 . 1 Total Hacks 135 | . 34 7 32 . 10 3 1 7 25 4 4 8 Successful 81 | . 18 3 19 . 10 2 1 2 16 4 2 4 Failed 51 | . 15 4 12 . . 1 . 5 8 . 2 4 Catastrophic 6 | . 1 . 4 . . . . . . . . 1 Database Lockouts 3 | . 1 . 1 . . . . . 1 . . . Manual 74 | . 22 4 26 . 1 1 . . 18 1 . 1 Terminals 105 | . 32 7 29 . . 3 . 7 23 . 4 . Fabricators 2 | . . . . . . . . . . 2 . . Repair Stations 6 | . . . . . . . . . . . . 6 Recycling Units 5 | . 2 . 3 . . . . . . . . . Scanalyzers 2 | . . . . . . . . . 2 . . . Garrison Access 5 | . . . . . . . 1 . . 2 . 2 Terminal Hacks 50 | . 11 2 11 . 10 2 . 2 10 . 2 . Record 10 | . . . . . 10 . . . . . . . Robot Analysis 5 | . 2 . 1 . . . . . 2 . . . Prototype ID Bank 3 | . 1 . 1 . . . . . 1 . . . Open Door 1 | . . . . . . . . . . . 1 . Level Access Points 1 | . . . . . . . . . 1 . . . Branch Access Points 3 | . . . 2 . . . . . 1 . . . Emergency Access Points 4 | . 1 . . . . . . 1 1 . 1 . Alert Level 5 | . 2 . 2 . . 1 . . . . . . Unreport Threat 5 | . . . 2 . . . . . 3 . . . Locate Traps 4 | . 2 1 1 . . . . . . . . . Dispatch Records 1 | . 1 . . . . . . . . . . . Maintenance Status 1 | . . . 1 . . . . . . . . . Transport Status 1 | . 1 . . . . . . . . . . . Hauler Manifests 1 | . 1 . . . . . . . . . . . Registered Prototypes 1 | . . . 1 . . . . . . . . . Zone Layout 3 | . . 1 . . . 1 . . 1 . . . Patrol Navigation 1 | . . . . . . . . 1 . . . . Fabricator Hacks 1 | . . . . . . . . . . 1 . . Build 1 | . . . . . . . . . . 1 . . Repair Station Hacks 3 | . . . . . . . . . . . . 3 Scan Component 2 | . . . . . . . . . . . . 2 Repair 1 | . . . . . . . . . . . . 1 Recycling Unit Hacks . | . . . . . . . . . . . . . Scanalyzer 2 | . . . . . . . . . 2 . . . Insert Component 1 | . . . . . . . . . 1 . . . Analyze 1 | . . . . . . . . . 1 . . . Garrison Access Hacks 4 | . . . . . . . 1 . . 2 . 1 Unlock Access 2 | . . . . . . . 1 . . 1 . . Seal Access 1 | . . . . . . . . . . . . 1 Coupler Status 1 | . . . . . . . . . . 1 . . Unauthorized Hacks 21 | . 7 1 8 . . . . . 4 1 . . Terminals 16 | . 5 1 6 . . . . . 4 . . . Track 1 | . . 1 . . . . . . . . . . Botnet 12 | . 4 . 5 . . . . . 3 . . . Operators 3 | . 1 . 1 . . . . . 1 . . . Fabricators 1 | . . . . . . . . . . 1 . . Haulers 1 | . . . . . . . . . . 1 . . Repair Stations . | . . . . . . . . . . . . . Recycling Units 4 | . 2 . 2 . . . . . . . . . Tunnel 4 | . 2 . 2 . . . . . . . . . Scanalyzers . | . . . . . . . . . . . . . Garrison Access . | . . . . . . . . . . . . . Data Cores Recovered . | . . . . . . . . . . . . . Used . | . . . . . . . . . . . . . Hacking Detections 33 | . 7 1 9 . . 1 1 2 6 2 2 2 Full Trace Events 2 | . . . . . . . . 1 . . . 1 Feedback Events . | . . . . . . . . . . . . . Feedback Blocked . | . . . . . . . . . . . . . Robot Schematics Acquired . | . . . . . . . . . . . . . Robots Built . | . . . . . . . . . . . . . Authchips . | . . . . . . . . . . . . . Time . | . . . . . . . . . . . . . Total Robot Build Rating . | . . . . . . . . . . . . . Part Schematics Acquired 1 | . . . . . . . . . 1 . . . Parts Built 2 | . . . . . . . . . . 2 . . Authchips . | . . . . . . . . . . . . . Time 117 | . . . . . . . . . . 117 . . Total Part Build Rating 14 | . . . . . . . . . . 14 . . Parts Repaired 1 | . . . . . . . . . . . . 1 Time 22 | . . . . . . . . . . . . 22 Parts Recycled . | . . . . . . . . . . . . . Recycled Matter . | . . . . . . . . . . . . . Retrieved Matter . | . . . . . . . . . . . . . Retrieved Components . | . . . . . . . . . . . . . Parts Scanalyzed 1 | . . . . . . . . . 1 . . . Part Schematics Acquired 1 | . . . . . . . . . 1 . . . Parts Damaged . | . . . . . . . . . . . . . Bothacking | -11 -10 -10 -9 -9 -9 -8 -8 -8 -8 -7 -7 -7 ------------ Run | Yrd Mat Min Mat Min Exi Min Mat Gar Mat Fac Gar Fac Used RIF Installer 3 | . . . . . . . . 2 . . 1 . Hotswap 1 | . . . . . . . . . . . 1 . Threat Obfuscator 1 | . . . . . . . . 1 . . . . Robots Hacked 26 | . . . . . . . . . 13 2 6 5 Non-combat 10 | . . . . . . . . . 7 2 . 1 Combat 16 | . . . . . . . . . 6 . 6 4 Robot Hacks Applied 33 | . . . . . . . . . 16 3 7 7 parse_system 1 | . . . . . . . . . 1 . . . no_distress 4 | . . . . . . . . . 4 . . . drop_inventory 2 | . . . . . . . . . . 1 . 1 find_recycling 1 | . . . . . . . . . 1 . . . ignore_parts 1 | . . . . . . . . . 1 . . . purge_threat 2 | . . . . . . . . . 2 . . . mark_security 1 | . . . . . . . . . . 1 . . find_garrison 1 | . . . . . . . . . 1 . . . link_fov 1 | . . . . . . . . . . 1 . . scatter_targeting 2 | . . . . . . . . . 1 . 1 . disrupt_area 1 | . . . . . . . . . 1 . . . amplify_resonance 1 | . . . . . . . . . 1 . . . reboot_system 2 | . . . . . . . . . 1 . . 1 go_dormant 2 | . . . . . . . . . . . 1 1 overwrite_iff 4 | . . . . . . . . . 1 . . 3 formatsys_high 7 | . . . . . . . . . 1 . 5 1 Relay Couplers Released 35 | . . . . . . . . 19 . . 16 . Machine Destruction 35 | . . . . . . . . 19 . . 16 . Attached 11 | . . . . . . . . 1 3 1 4 2 Fabnet Peak Effective % . | . . . . . . . . . . . . . Robots Rewired 16 | . . . . . 2 . . 10 . . 4 . Allies Hacked . | . . . . . . . . . . . . . Hacks Repelled . | . . . . . . . . . . . . . Allies | -11 -10 -10 -9 -9 -9 -8 -8 -8 -8 -7 -7 -7 -------- Run | Yrd Mat Min Mat Min Exi Min Mat Gar Mat Fac Gar Fac Total Allies 26 | . . . . . 2 . . 10 2 . 9 3 Largest Group 6 | . . . . . 2 . . 6 3 . 6 5 Highest-Rated Group 176 | . . . . . 16 . . 92 60 . 176 144 Highest-Rated Ally 32 | . . . . . 8 . . 24 29 . 32 32 Total Orders 6 | . . . . . . . . . 4 . 2 . STAY 3 | . . . . . . . . . 2 . 1 . FOLLOW 3 | . . . . . . . . . 2 . 1 . Ally Attacks 163 | . . . . . . 1 . 36 35 . 24 67 Total Damage 3538 | . . . . . . . . 728 700 . 606 1504 Kills 40 | . . . . . . . . 9 12 . 6 13 Allies Corrupted 1 | . . . . . . . . 1 . . . . Allies Melted . | . . . . . . . . . . . . . Intel | -11 -10 -10 -9 -9 -9 -8 -8 -8 -8 -7 -7 -7 ------- Run | Yrd Mat Min Mat Min Exi Min Mat Gar Mat Fac Gar Fac Active Infowar (turns) 15082 | 19 1189 275 4047 344 1311 138 342 764 1316 3291 545 1501 Sensors 9599 | . 790 275 1341 . . . 342 764 1316 3291 545 935 Terrain 6 | . . . . . 6 . . . . . . . Traps 2 | . . . . . . . . . . 2 . . Seismic 5477 | 19 399 . 2706 344 1305 138 . . . . . 566 Robot Analysis Total 5 | . 2 . 1 . . . . . 2 . . . Derelict Logs Recovered 3 | . . 2 . 1 . . . . . . . . Drone Launches . | . . . . . . . . . . . . . Drone Recoveries . | . . . . . . . . . . . . . Exploration | -11 -10 -10 -9 -9 -9 -8 -8 -8 -8 -7 -7 -7 ------------- Run | Yrd Mat Min Mat Min Exi Min Mat Gar Mat Fac Gar Fac Turns Passed 28179 | 130 1710 769 4630 344 1311 2164 438 3768 3183 3291 3427 3014 Spaces Moved 10914 | 91 964 517 1671 143 530 832 157 1319 1086 1465 1121 1018 Core 1 | 1 . . . . . . . . . . . . Treads 8487 | . 48 . 1568 143 530 832 157 1319 1086 940 846 1018 Legs . | . . . . . . . . . . . . . Wheels 2426 | 90 916 517 103 . . . . . . 525 275 . Hover . | . . . . . . . . . . . . . Flight . | . . . . . . . . . . . . . Fastest Speed 50 | 50 80 130 123 240 240 240 243 243 238 130 130 240 Average Speed 217 | 79 138 136 232 240 240 241 243 243 241 200 220 243 Slowest Speed 320 | 80 320 145 240 240 240 243 243 243 243 240 250 250 Overloaded Moves . | . . . . . . . . . . . . . Propulsion Burnouts . | . . . . . . . . . . . . . Robots Hopped . | . . . . . . . . . . . . . Potential Cave-ins . | . . . . . . . . . . . . . Cave-ins Triggered 1 | . . . . . . . . . . . . 1 Exploration Rate (%) 65 | 3 100 99 98 18 92 100 10 99 77 26 97 26 Regions Visited 12 Branch Regions 4 Pre-discovered Areas 7 | . 2 2 2 . 1 . . . . . . . Known Exits Taken 4 | . . . 1 . . . 1 . 1 1 . . Unknown Exits Taken 6 | 1 1 1 . 1 1 1 . . . . . . Scrap Searched 3 | . . 1 . 1 . 1 . . . . . . Spaces Dug 72 | . 2 . 3 . . 1 2 2 21 22 7 12 Terrain Destroyed 266 | . 10 15 38 . . 2 2 29 22 28 42 78 Melee 64 | . 2 . 3 . . 1 2 . 21 22 1 12 Projectile 19 | . . . 3 . . 1 . 1 1 1 1 11 AOE 183 | . 8 15 32 . . . . 28 . 5 40 55 Terrain Rammed . | . . . . . . . . . . . . . Walls Destroyed . | . . . . . . . . . . . . . Machines Disabled . | . . . . . . . . . . . . . Actions | -11 -10 -10 -9 -9 -9 -8 -8 -8 -8 -7 -7 -7 --------- Run | Yrd Mat Min Mat Min Exi Min Mat Gar Mat Fac Gar Fac Total 13668 | 119 1226 546 2107 145 555 893 190 1619 1444 1662 1856 1306 Wait 1027 | . 139 3 156 3 . 2 4 51 111 30 467 61 Move 10900 | 90 963 516 1670 142 529 831 156 1317 1085 1464 1119 1018 Hop . | . . . . . . . . . . . . . Pick Up 158 | 7 29 2 31 . 2 5 5 18 19 10 16 14 Fast Attach 44 | 7 1 . 3 . . . 3 2 4 6 11 7 Attach 55 | . 4 . 7 . 1 5 . 6 10 1 11 10 Detach 29 | . . . 1 . 1 . 1 2 4 3 11 6 Swap 241 | 1 14 7 36 . 4 3 2 28 55 33 25 33 Drop 146 | . 11 2 37 . 2 1 5 19 25 16 18 10 Fire 706 | 14 52 16 157 . 3 40 8 85 74 57 88 112 Melee 307 | . 13 . 8 . 12 6 6 78 57 42 53 32 Ram . | . . . . . . . . . . . . . Kick . | . . . . . . . . . . . . . Crush 4 | . . . 1 . . . . . . . . 3 Escape Stasis 36 | . . . . . . . . 8 . . 28 . Rewire 15 | . . . . . 1 . . 5 . . 9 . Trap . | . . . . . . . . . . . . . Miscellaneous . | . . . . . . . . . . . . . Route ------- -11/Scrapyard -10/Materials (discovered 6 exits: *Mat x3 / *Min x2 / [*Sub]) -10/Mines (discovered 3 exits: *Mat x2 / [*Sub]) -9/Materials (discovered 5 exits: *Mat x3 / *Min x2) -9/Mines -9/Exiles (discovered 2 exits: *Min x2) -8/Mines (discovered 2 exits: *Mat x2) -8/Materials (discovered 2 exits: Fac / Gar) -8/Garrison (discovered 3 exits: *Mat x3) -8/Materials (discovered 4 exits: *Fac x3 / *Sto) -7/Factory (discovered 2 exits: *Fac / Gar) -7/Garrison (discovered 3 exits: *Fac x3) -7/Factory History --------- Turn | Location | Event 21 | -11/Scrapyard | Discovered new exit (range 16) 131 | -11/Scrapyard | Entered Materials 219 | -10/Materials | Discovered new exit (range 12) 293 | -10/Materials | Discovered new exit (range 14) 299 | -10/Materials | Central database locked down 302 | -10/Materials | Build established: Mutant 349 | -10/Materials | Discovered new exit (range 16) 522 | -10/Materials | Discovered new exit (range 16) 607 | -10/Materials | Lost 3 parts (1p2n) 928 | -10/Materials | Discovered new exit (range 6) 1531 | -10/Materials | Derelicts attacked the area 1671 | -10/Materials | Discovered new exit (range 11) 1841 | -10/Materials | Entered Mines 2057 | -10/Mines | Discovered new exit (range 9) 2110 | -10/Mines | Core integrity fell below 50% 2245 | -10/Mines | Received a Rocket Launcher from a helpful Derelict 2293 | -10/Mines | Learned location of Zion (-7) 2412 | -10/Mines | Discovered new exit (range 6) 2572 | -10/Mines | Discovered new exit (range 15) 2610 | -10/Mines | Entered Materials 2610 | -9/Materials | Evolved 2 slots: Propulsion x1, Utility x1 2691 | -9/Materials | Identified exit to Mines 3303 | -9/Materials | Central database locked down 5004 | -9/Materials | Discovered new exit (range 16) 5955 | -9/Materials | Discovered new exit (range 9) 6699 | -9/Materials | Discovered new exit (range 16) 6807 | -9/Materials | Sterilization system engaged 6807 | -9/Materials | Non-combat units ordered to evacuate 6907 | -9/Materials | Combat units ordered to evacuate 7107 | -9/Materials | Ambient heat levels rising (+10) 7240 | -9/Materials | Entered Mines 7303 | -9/Mines | Learned 2 Materials zone layouts 7358 | -9/Mines | Deemed a non-threat by the Exiles lab entrance 7360 | -9/Mines | Discovered new exit (range 5) 7428 | -9/Mines | A weapon hastily lodged in a ceiling crevice suddenly fell to the ground 7584 | -9/Mines | Entered Exiles 7584 | -9/Exiles | Found Exiles lab destroyed 7617 | -9/Exiles | Discovered new exit (range 15) 8866 | -9/Exiles | Discovered new exit (range 14) 8895 | -9/Exiles | Entered Mines 8895 | -8/Mines | Accompanied by 2 allies 9449 | -8/Mines | Discovered new exit (range 5) 9655 | -8/Mines | Core integrity fell below 50% 9674 | -8/Mines | Core integrity fell below 20% 9698 | -8/Mines | Lost 4 parts (1p2n1w) 9768 | -8/Mines | Found DCF Scrap (15 items) 9806 | -8/Mines | Discovered new exit (range 7) 9998 | -8/Mines | Build established: Scavenger-Mutant 10308 | -8/Mines | Build established: Mutant 11059 | -8/Mines | Entered Materials 11059 | -8/Materials | Evolved 2 slots: Utility x2 11060 | -8/Materials | Identified exit to Factory 11489 | -8/Materials | Identified exit to Garrison 11497 | -8/Materials | Entered Garrison 11565 | -8/Garrison | Triggered checkpoint 11782 | -8/Garrison | Garrison Relay disabled 12224 | -8/Garrison | Destroyed 9 combat bots 12306 | -8/Garrison | Garrison Relay disabled 12367 | -8/Garrison | Triggered checkpoint 12403 | -8/Garrison | Discovered new exit (range 12) 12497 | -8/Garrison | Triggered checkpoint 12902 | -8/Garrison | Lost 4 allies 13162 | -8/Garrison | Installed Relay Interface Framework 13208 | -8/Garrison | Discovered new exit (range 11) 13337 | -8/Garrison | Expanded RIF knowledge: Threat Obfuscation 13457 | -8/Garrison | Build established: Bothacker-Mutant 13473 | -8/Garrison | Triggered checkpoint 13510 | -8/Garrison | Garrison Relay disabled 13629 | -8/Garrison | Triggered checkpoint 13798 | -8/Garrison | Garrison Relay disabled 13819 | -8/Garrison | Triggered checkpoint 14062 | -8/Garrison | Discovered new exit (range 15) 14221 | -8/Garrison | Build established: Mutant 14582 | -8/Garrison | Garrison Relay disabled 14791 | -8/Garrison | Triggered checkpoint 15258 | -8/Garrison | Identified exit to Materials 15265 | -8/Garrison | Entered Materials 15265 | -8/Materials | Accompanied by 2 allies 15578 | -8/Materials | Build established: Bothacker-Mutant 16472 | -8/Materials | Core integrity fell below 50% 16685 | -8/Materials | Discovered exit to Factory (range 16) 16834 | -8/Materials | Discovered new exit (range 12) 16865 | -8/Materials | First assault squad dispatched 16923 | -8/Materials | Core integrity fell below 20% 16945 | -8/Materials | Lost 6 parts (1p1n1u3w) 17010 | -8/Materials | Identified exit to Storage 17744 | -8/Materials | Central database locked down 18448 | -8/Materials | Entered Factory 18448 | -7/Factory | Evolved 2 slots: Utility x2 18855 | -7/Factory | Discovered new exit (range 15) 18993 | -7/Factory | Identified exit to Factory 19423 | -7/Factory | Fabricated Graphene Brace (x2) 21717 | -7/Factory | Identified exit to Garrison 21739 | -7/Factory | Entered Garrison 21817 | -7/Garrison | Triggered checkpoint 21865 | -7/Garrison | Garrison Relay disabled 22509 | -7/Garrison | Triggered checkpoint 23131 | -7/Garrison | Triggered checkpoint 23221 | -7/Garrison | Discovered new exit (range 12) 23253 | -7/Garrison | Garrison Relay disabled 23306 | -7/Garrison | Identified exit to Factory 23846 | -7/Garrison | Discovered exit to Factory (range 13) 24109 | -7/Garrison | Triggered checkpoint 24203 | -7/Garrison | Triggered checkpoint 24226 | -7/Garrison | Garrison Relay disabled 24228 | -7/Garrison | Heavy support dispatched to Factory 24237 | -7/Garrison | Heavy support dispatched to Factory 24621 | -7/Garrison | Triggered checkpoint 24731 | -7/Garrison | Garrison Relay disabled 24773 | -7/Garrison | Discovered exit to Factory (range 9) 24830 | -7/Garrison | Expanded RIF knowledge: Hotswap 24932 | -7/Garrison | Core integrity fell below 50% 24941 | -7/Garrison | Heavy support dispatched to Factory 25041 | -7/Garrison | Triggered checkpoint 25166 | -7/Garrison | Entered Factory 25166 | -7/Factory | Accompanied by 5 allies 25215 | -7/Factory | Garrison activated, responded to threat 25966 | -7/Factory | First assault squad dispatched 26058 | -7/Factory | Crushed by falling debris 26269 | -7/Factory | Core integrity fell below 20% 26655 | -7/Factory | Repaired Remote Datajack 28180 | -7/Factory | Destroyed by exploding Neutrino Reactor Last Messages --------------- 28125_ Sneak attack on R-06 Scavenger. 28125_ Destroyed Lgt. Ion Engine. 28132_ Destroyed Tractor Beam. 28139_ Sneak attack on R-06 Scavenger. 28139_ Destroyed Com. Wheel. 28139_ R-06 Scavenger destroyed. 28142_ Acquired 83 matter. 28146_ ZEXR3O=SSJMBE|5NSA366#V 28167_ System corrupted: Substantial component data lost. 28169_ R-06 Scavenger collects Lgt. Ion Engine. 28171_ K-01 Serf collects debris. 28173_ R-06 Scavenger collects Sml. Storage Unit. 28175_ K-01 Serf collects debris. 28180_ Triggered Proton Bomb Trap. 28180_ A bubble of electromagnetic force engulfs the area. 28180_ Door malfunctions. 28180_ Neutrino Reactor explodes. 28180_ Recycling Unit disabled. 28180_ Terrain Scan Processor tumbles out of recycling unit. 28180_ Hvy. Assault Cannon tumbles out of recycling unit. Map ----- +----------------------------------------------------+ | ?????????????????????????????????????????????????? | | ?????????????????????????????????????????????????? | | ?????????????????????????????????????????????????? | | ???????##############????????????????????????????? | | ???????# #????????????????????????????? | | ???????# #????????????????????????????? | | ???????# #????????????????????????????? | | ???????# ! #????????????????????????????? | | ???????# ! #????????????????????????????? | | ???????# = #????????????????????????????? | | ???????# #????????????????????????????? | | ???????# = #????????????????????????????? | | ???????# #????????????????????????????? | | ???????# #????????????????????????????? | | ???????# #????????????????????????????? | | ???????# #????????????????????????????? | | ##############+##########????????o???????????????? | | ###### k ???????????????? | | ?????????????? | | k ##############???????????? | | # ![[#???????????? | | # "" ![[#???????????? | | ############ # " = ![[#???????????? | | ???????????# """""" #! ] #???????????? | | ???????????# """""" # #???????????? | | ???????????# """""" #@ #???????????? | | ??????????Y# """""" / """ #???????????? | | ???????????# # """ ??????????????? | | ???????????# # """ ??????????????? | | ???????????# ###### # ??????????????? | | ???????????# ?????# # [ ?????????????? | | ?????????? ??????# # ????????????? | | ?????????? ???????# ###########Y##???????????? | | ??????????? ?????????# #???????????#????????????? | | ??????????????????????? ?????????????????????????? | | ??????????????????????? ?????????????????????????? | | ??????????????????????? ?????????????????????????? | | ??????????????????????? ?????k???????????????????? | | ??????????????????????? ?????????????????????????? | | ??????????????????????? ?????????????????????????? | | ??????????????????????? ?????????????????????????? | | ?????????????????????????????????????????????????? | | ?????????????????????????????????????????????????? | | ?????????????????????????????????????????????????? | | ?????????????????????????????????????????????????? | | ?????????????????????????????????????????????????? | | ?????????????????????????????????????????????????? | | ?????????????????????????????????????????????????? | | ?????????????????????????????????????????????????? | | ?????????????????????????????????????????????????? | +----------------------------------------------------+ Best States ------------- Heat Dissipation 34 Energy Generation 17 Energy Capacity 300 Matter Stores 300 Matter Capacity 300 Sight Range 16 Robot Scan Range 15 Terrain Scan Range 18 Terrain Scan Density 10 Armor Coverage 750 Resistance: KI 30 Weapon Cycling 15 Evasion (%) 44 Targeting Accuracy 8 Recoil Reduction 3 Matter Filtering 30 Kinecelleration 40 Offensive Hacking 10 Defensive Hacking 10 Relay Coupler Types 2 Relay Coupler Value 76 Authchip Count 2 Item Schematics ----------------- Hacking Suite | -8/Materials | Scanalyzed Robot Schematics ------------------ None Fabricated ------------ Graphene Brace | x2 | -7/Factory | Preloaded Repaired ---------- Remote Datajack | 1% | -7/Factory Alien Tech Used ----------------- None Achievements -------------- Error 47 Challenges ------------ None Game ------ Seed FireEfficiencyPropulsion Manual? 0 Play Time 03:07:41 Cumulative 111.9 hours Start 2025.06.02 @ 12:42:01 End 2025.06.07 @ 16:16:47 Sessions 7 Manual Loads 0 Difficulty Rogue Special Mode None Game No. 65 Rogue 61 Adventurer 4 Explorer 0 Win Type - Total 2 Types 1/0/0/1/0/0/0/0/0/0 Lore% 48 Gallery% 48 Achievement% 43 Wizard Run 0 Options --------- Layout 0 ASCII 0 Keyboard 1 Movement Vi Keybinds 0 Fullscreen 1 Font 24/Crisp Map View 76x50 Zoom Use 0% Tactical HUD 1 Map Filters NONE Filters NONE Steam 1 RUN: f8e1c5a9-bf5b-4c2e-9de6-3f58229edfcd